[Event "*** Titled Tuesday Blitz"]
[Site "Chess.com"]
[Date "2021.04.06"]
[Round "1"]
[White "Trickov"]
[Black "nrvisakh"]
[Result "0-1"]
[WhiteElo "2417"]
[BlackElo "2777"]
[TimeControl "180+1"]
[EndTime "10:06:16 PDT"]
[Termination "nrvisakh won by resignation"]

1. d4 {[%clk 0:02:59.5]} 1... Nf6 {[%clk 0:02:57.1]} 2. Nf3 {[%clk 0:02:59]}
2... g6 {[%clk 0:02:53.5]} 3. c3 {[%clk 0:02:58.3]} 3... Bg7 {[%clk 0:02:52.9]}
4. g3 {[%clk 0:02:55.1]} 4... b6 {[%clk 0:02:13.2]} 5. Bg2 {[%clk 0:02:54.4]}
5... Bb7 {[%clk 0:02:13.3]} 6. O-O {[%clk 0:02:53.8]} 6... O-O {[%clk
0:02:13.6]} 7. Bg5 {[%clk 0:02:51.9]} 7... c5 {[%clk 0:02:12.4]} 8. Nbd2 {[%clk
0:02:50.6]} 8... d6 {[%clk 0:02:10.8]} 9. h3 {[%clk 0:02:44.3]} 9... Nbd7 {[%clk
0:02:08.6]} 10. Re1 {[%clk 0:02:43.6]} 10... h6 {[%clk 0:02:04.6]} 11. Bxf6
{[%clk 0:02:42.5]} 11... Nxf6 {[%clk 0:02:04.4]} 12. e4 {[%clk 0:02:42.6]} 12...
cxd4 {[%clk 0:02:03.9]} 13. Nxd4 {[%clk 0:02:41.2]} 13... e5 {[%clk 0:02:00.4]}
14. N4b3 {[%clk 0:02:30.9]} 14... Rc8 {[%clk 0:01:57.3]} 15. Qe2 {[%clk
0:02:29.8]} 15... Qc7 {[%clk 0:01:52]} 16. Rac1 {[%clk 0:02:25]} 16... a5 {[%clk
0:01:50.7]} 17. Nf1 {[%clk 0:02:02.4]} 17... a4 {[%clk 0:01:41.1]} 18. Nbd2
{[%clk 0:02:00]} 18... Nd7 {[%clk 0:01:40.4]} 19. Ne3 {[%clk 0:01:56.9]} 19...
Nc5 {[%clk 0:01:40.4]} 20. Nd5 {[%clk 0:01:56.3]} 20... Bxd5 {[%clk 0:01:36.8]}
21. exd5 {[%clk 0:01:55.8]} 21... f5 {[%clk 0:01:37.2]} 22. b4 {[%clk
0:01:48.9]} 22... axb3 {[%clk 0:01:36.3]} 23. axb3 {[%clk 0:01:48.7]} 23... e4
{[%clk 0:01:36]} 24. Rc2 {[%clk 0:01:20.8]} 24... Nd3 {[%clk 0:01:27]} 25. Rd1
{[%clk 0:01:20.2]} 25... Nb4 {[%clk 0:01:25.8]} 26. Rcc1 {[%clk 0:01:17.5]}
26... Na2 {[%clk 0:01:25.9]} 27. c4 {[%clk 0:01:09.7]} 27... Nxc1 {[%clk
0:01:23.9]} 28. Rxc1 {[%clk 0:01:09.4]} 28... Qc5 {[%clk 0:01:23.9]} 29. g4
{[%clk 0:01:04.2]} 29... Rce8 {[%clk 0:01:16.9]} 30. gxf5 {[%clk 0:00:59.6]}
30... e3 {[%clk 0:01:17.2]} 31. Ne4 {[%clk 0:00:57.1]} 31... exf2+ {[%clk
0:01:10.5]} 32. Qxf2 {[%clk 0:00:44.4]} 32... Qxf2+ {[%clk 0:01:09.2]} 33. Kxf2
{[%clk 0:00:35.8]} 33... Bd4+ {[%clk 0:01:07.5]} 34. Kg3 {[%clk 0:00:14.5]}
34... gxf5 {[%clk 0:01:07]} 0-1

[Event "*** Titled Tuesday Blitz"]
[Site "Chess.com"]
[Date "2021.04.06"]
[Round "1"]
[White "BilodeauA"]
[Black "HackingKid98"]
[Result "1-0"]
[WhiteElo "2895"]
[BlackElo "2455"]
[TimeControl "180+1"]
[EndTime "10:06:17 PDT"]
[Termination "BilodeauA won by checkmate"]

1. d4 {[%clk 0:02:58.5]} 1... Nf6 {[%clk 0:02:58.9]} 2. Nc3 {[%clk 0:02:57.2]}
2... d5 {[%clk 0:02:57.7]} 3. Bf4 {[%clk 0:02:56.1]} 3... c6 {[%clk 0:02:54.4]}
4. e3 {[%clk 0:02:56.1]} 4... Bf5 {[%clk 0:02:49.5]} 5. f3 {[%clk 0:02:55.7]}
5... h6 {[%clk 0:02:47]} 6. Bd3 {[%clk 0:02:50.7]} 6... Bxd3 {[%clk 0:02:46.2]}
7. Qxd3 {[%clk 0:02:51.6]} 7... e6 {[%clk 0:02:46.4]} 8. e4 {[%clk 0:02:49.5]}
8... Bb4 {[%clk 0:02:43.6]} 9. Ne2 {[%clk 0:02:48.2]} 9... O-O {[%clk 0:02:35]}
10. O-O-O {[%clk 0:02:46.4]} 10... Na6 {[%clk 0:02:24.9]} 11. g4 {[%clk
0:02:37.5]} 11... c5 {[%clk 0:02:20.7]} 12. g5 {[%clk 0:02:27.7]} 12... hxg5
{[%clk 0:02:06.8]} 13. Bxg5 {[%clk 0:02:26.7]} 13... cxd4 {[%clk 0:01:54.5]} 14.
e5 {[%clk 0:01:42.7]} 14... dxc3 {[%clk 0:01:44.6]} 15. Bxf6 {[%clk 0:01:39.6]}
15... cxb2+ {[%clk 0:01:31.7]} 16. Kb1 {[%clk 0:01:38.3]} 16... Be7 {[%clk
0:01:12.7]} 17. Bxg7 {[%clk 0:01:16]} 17... Kxg7 {[%clk 0:00:45.4]} 18. Rdg1+
{[%clk 0:01:16.1]} 18... Kh6 {[%clk 0:00:20.8]} 19. Qe3+ {[%clk 0:00:59.8]}
19... Bg5 {[%clk 0:00:19.9]} 20. f4 {[%clk 0:01:00]} 20... Rc8 {[%clk
0:00:13.1]} 21. Rxg5 {[%clk 0:00:55.7]} 21... Qxg5 {[%clk 0:00:10.4]} 22. fxg5+
{[%clk 0:00:55.4]} 22... Kg7 {[%clk 0:00:09.6]} 23. Qf4 {[%clk 0:00:48.5]} 23...
Rg8 {[%clk 0:00:06.8]} 24. Rf1 {[%clk 0:00:45.9]} 24... Rc7 {[%clk 0:00:05.9]}
25. Qf6+ {[%clk 0:00:46]} 25... Kh7 {[%clk 0:00:06.1]} 26. Qh6# {[%clk
0:00:45.5]} 1-0

[Event "*** Titled Tuesday Blitz"]
[Site "Chess.com"]
[Date "2021.04.06"]
[Round "1"]
[White "ShahMatKanal"]
[Black "Sanan_Sjugirov"]
[Result "0-1"]
[WhiteElo "2443"]
[BlackElo "2858"]
[TimeControl "180+1"]
[EndTime "10:06:17 PDT"]
[Termination "Sanan_Sjugirov won by resignation"]

1. d4 {[%clk 0:02:58.7]} 1... Nf6 {[%clk 0:02:55.3]} 2. Nf3 {[%clk 0:02:56.2]}
2... e6 {[%clk 0:02:53.8]} 3. c4 {[%clk 0:02:51.5]} 3... c5 {[%clk 0:02:53.6]}
4. e3 {[%clk 0:02:49.3]} 4... a6 {[%clk 0:02:48.4]} 5. Nc3 {[%clk 0:02:47.7]}
5... cxd4 {[%clk 0:02:32.2]} 6. exd4 {[%clk 0:02:48.6]} 6... d5 {[%clk
0:02:31.6]} 7. Be2 {[%clk 0:02:45.8]} 7... dxc4 {[%clk 0:02:30]} 8. Bxc4 {[%clk
0:02:45.4]} 8... b5 {[%clk 0:02:29.6]} 9. Bd3 {[%clk 0:02:41.2]} 9... Bb7 {[%clk
0:02:29.2]} 10. O-O {[%clk 0:02:41.2]} 10... Be7 {[%clk 0:02:28.7]} 11. Qe2
{[%clk 0:02:35.5]} 11... O-O {[%clk 0:02:28]} 12. Rd1 {[%clk 0:02:35.2]} 12...
Nc6 {[%clk 0:02:26.1]} 13. a3 {[%clk 0:02:11.3]} 13... Na5 {[%clk 0:02:25.6]}
14. Bc2 {[%clk 0:01:58.1]} 14... Nc4 {[%clk 0:02:25.4]} 15. b3 {[%clk
0:01:45.8]} 15... Nb6 {[%clk 0:02:25.2]} 16. Ne4 {[%clk 0:01:20]} 16... Nxe4
{[%clk 0:02:20.8]} 17. Bxe4 {[%clk 0:01:20.2]} 17... Bxe4 {[%clk 0:02:21.2]} 18.
Qxe4 {[%clk 0:01:21.1]} 18... Qd5 {[%clk 0:02:20.5]} 19. Qxd5 {[%clk 0:01:10.7]}
19... Nxd5 {[%clk 0:02:21.4]} 20. Bb2 {[%clk 0:01:08.4]} 20... Rfc8 {[%clk
0:02:20.5]} 21. Rac1 {[%clk 0:01:07.5]} 21... f6 {[%clk 0:02:16.3]} 22. Kf1
{[%clk 0:01:03.7]} 22... Kf7 {[%clk 0:02:16.2]} 23. g3 {[%clk 0:00:56.6]} 23...
g5 {[%clk 0:02:15.9]} 24. h3 {[%clk 0:00:52.2]} 24... h5 {[%clk 0:02:15.6]} 25.
Rxc8 {[%clk 0:00:49.1]} 25... Rxc8 {[%clk 0:02:15.2]} 26. Rc1 {[%clk 0:00:50]}
26... Rxc1+ {[%clk 0:01:58.3]} 27. Bxc1 {[%clk 0:00:50.9]} 27... g4 {[%clk
0:01:58.5]} 28. hxg4 {[%clk 0:00:50.4]} 28... hxg4 {[%clk 0:01:59.4]} 29. Ne1
{[%clk 0:00:44.2]} 29... Kg6 {[%clk 0:01:55.7]} 30. Ke2 {[%clk 0:00:27.1]} 30...
Kf5 {[%clk 0:01:53.9]} 31. Kd3 {[%clk 0:00:26.6]} 31... e5 {[%clk 0:01:37]} 32.
dxe5 {[%clk 0:00:25.5]} 32... fxe5 {[%clk 0:01:37.9]} 33. Nc2 {[%clk 0:00:20]}
33... Bc5 {[%clk 0:01:37.4]} 34. Ne3+ {[%clk 0:00:12.6]} 34... Nxe3 {[%clk
0:01:37.4]} 35. fxe3 {[%clk 0:00:10]} 35... e4+ {[%clk 0:01:37.7]} 36. Ke2
{[%clk 0:00:10.5]} 36... Ke6 {[%clk 0:01:36.1]} 37. Bb2 {[%clk 0:00:08.3]} 37...
Kd5 {[%clk 0:01:36]} 38. Bc1 {[%clk 0:00:06.7]} 38... a5 {[%clk 0:01:35.8]} 39.
Bb2 {[%clk 0:00:05.2]} 39... a4 {[%clk 0:01:35.8]} 40. bxa4 {[%clk 0:00:04.6]}
40... bxa4 {[%clk 0:01:36.7]} 41. Bc1 {[%clk 0:00:02.8]} 41... Kc4 {[%clk
0:01:36.9]} 42. Bb2 {[%clk 0:00:02.4]} 42... Kb3 {[%clk 0:01:37.2]} 43. Bc1
{[%clk 0:00:02.8]} 43... Bxa3 {[%clk 0:01:37.3]} 44. Bd2 {[%clk 0:00:03.2]}
44... Bb2 {[%clk 0:01:37.5]} 0-1

[Event "*** Titled Tuesday Blitz"]
[Site "Chess.com"]
[Date "2021.04.06"]
[Round "1"]
[White "Rozhkov_V"]
[Black "Alexander_Moskalenko"]
[Result "1-0"]
[WhiteElo "2433"]
[BlackElo "2733"]
[TimeControl "180+1"]
[EndTime "10:06:21 PDT"]
[Termination "Rozhkov_V won by resignation"]

1. e4 {[%clk 0:02:59.6]} 1... c5 {[%clk 0:02:58.9]} 2. Nf3 {[%clk 0:02:59.3]}
2... d6 {[%clk 0:02:58.7]} 3. d4 {[%clk 0:02:59.7]} 3... cxd4 {[%clk 0:02:59.6]}
4. Nxd4 {[%clk 0:02:59.9]} 4... Nf6 {[%clk 0:03:00.2]} 5. Nc3 {[%clk 0:03:00.4]}
5... g6 {[%clk 0:03:00.8]} 6. Be3 {[%clk 0:02:59.8]} 6... Bg7 {[%clk 0:03:01.2]}
7. f3 {[%clk 0:02:59.5]} 7... O-O {[%clk 0:03:01.3]} 8. Qd2 {[%clk 0:02:59.5]}
8... Nc6 {[%clk 0:03:01.2]} 9. O-O-O {[%clk 0:02:59.2]} 9... Bd7 {[%clk
0:03:00.6]} 10. g4 {[%clk 0:02:55.7]} 10... Rc8 {[%clk 0:02:44.9]} 11. Nxc6
{[%clk 0:02:52.3]} 11... Rxc6 {[%clk 0:02:30.9]} 12. Kb1 {[%clk 0:02:42.2]}
12... Rxc3 {[%clk 0:02:29.8]} 13. Qxc3 {[%clk 0:02:39.3]} 13... Nxg4 {[%clk
0:02:20.1]} 14. Bd4 {[%clk 0:02:13.4]} 14... Nf2 {[%clk 0:02:19.8]} 15. Bxg7
{[%clk 0:02:13.2]} 15... Nxd1 {[%clk 0:02:20]} 16. Qd4 {[%clk 0:02:13.4]} 16...
e5 {[%clk 0:02:13]} 17. Qxd1 {[%clk 0:01:57.9]} 17... Kxg7 {[%clk 0:02:11.6]}
18. Qxd6 {[%clk 0:01:57.5]} 18... Be6 {[%clk 0:02:04.7]} 19. Qxd8 {[%clk
0:01:33.7]} 19... Rxd8 {[%clk 0:02:05.6]} 20. Bd3 {[%clk 0:01:31.7]} 20... Kf6
{[%clk 0:02:06.1]} 21. h4 {[%clk 0:01:08.4]} 21... h5 {[%clk 0:02:03.8]} 22. Rg1
{[%clk 0:01:04.1]} 22... b6 {[%clk 0:01:51.2]} 23. a3 {[%clk 0:00:58.6]} 23...
Rd4 {[%clk 0:01:48]} 24. Rg5 {[%clk 0:00:57.1]} 24... Bc4 {[%clk 0:01:41.1]} 25.
Bxc4 {[%clk 0:00:57.2]} 25... Rxc4 {[%clk 0:01:42]} 26. c3 {[%clk 0:00:57.7]}
26... Rc5 {[%clk 0:01:32.7]} 27. Kc2 {[%clk 0:00:56.4]} 27... b5 {[%clk
0:01:28.4]} 28. f4 {[%clk 0:00:53.4]} 28... Kg7 {[%clk 0:01:02.6]} 29. b4 {[%clk
0:00:39.9]} 29... Rc4 {[%clk 0:01:00.8]} 30. Rxe5 {[%clk 0:00:39.2]} 30... f6
{[%clk 0:01:01.4]} 31. Rxb5 {[%clk 0:00:34.7]} 31... Rxe4 {[%clk 0:01:00.1]} 32.
Rb7+ {[%clk 0:00:35.2]} 32... Kg8 {[%clk 0:00:59.4]} 33. Rxa7 {[%clk 0:00:35.9]}
33... Rxf4 {[%clk 0:01:00]} 34. b5 {[%clk 0:00:36.1]} 34... Rf5 {[%clk
0:00:53.6]} 35. b6 {[%clk 0:00:33.4]} 35... Rb5 {[%clk 0:00:54.5]} 36. b7 {[%clk
0:00:33.7]} 36... g5 {[%clk 0:00:55.4]} 37. Ra8+ {[%clk 0:00:29.4]} 37... Kg7
{[%clk 0:00:55.5]} 38. b8=Q {[%clk 0:00:29.8]} 38... Rxb8 {[%clk 0:00:56]} 39.
Rxb8 {[%clk 0:00:30.5]} 39... g4 {[%clk 0:00:55.6]} 40. a4 {[%clk 0:00:30.2]}
1-0

[Event "*** Titled Tuesday Blitz"]
[Site "Chess.com"]
[Date "2021.04.06"]
[Round "1"]
[White "Rish_97"]
[Black "ExtremeLearner"]
[Result "1-0"]
[WhiteElo "2703"]
[BlackElo "2378"]
[TimeControl "180+1"]
[EndTime "10:06:21 PDT"]
[Termination "Rish_97 won by resignation"]

1. e4 {[%clk 0:02:57.3]} 1... c6 {[%clk 0:03:00.3]} 2. Nc3 {[%clk 0:02:56.5]}
2... d5 {[%clk 0:03:01.2]} 3. Nf3 {[%clk 0:02:56.8]} 3... Bg4 {[%clk 0:03:00.7]}
4. h3 {[%clk 0:02:56.6]} 4... Bxf3 {[%clk 0:03:01.2]} 5. Qxf3 {[%clk 0:02:57.1]}
5... e6 {[%clk 0:03:02.1]} 6. d3 {[%clk 0:02:57.5]} 6... Nd7 {[%clk 0:02:57.7]}
7. g4 {[%clk 0:02:53.4]} 7... Bc5 {[%clk 0:02:48.6]} 8. Bd2 {[%clk 0:02:42.8]}
8... Ne7 {[%clk 0:02:45.4]} 9. O-O-O {[%clk 0:02:39.3]} 9... a5 {[%clk
0:02:35.9]} 10. h4 {[%clk 0:02:34.6]} 10... a4 {[%clk 0:02:30.8]} 11. a3 {[%clk
0:02:18.6]} 11... d4 {[%clk 0:02:17.9]} 12. Ne2 {[%clk 0:02:13.9]} 12... b5
{[%clk 0:02:13.7]} 13. c3 {[%clk 0:02:00.3]} 13... e5 {[%clk 0:01:40.2]} 14. g5
{[%clk 0:01:54]} 14... Qb6 {[%clk 0:01:32.9]} 15. Bh3 {[%clk 0:01:53.3]} 15...
Rd8 {[%clk 0:01:30.2]} 16. h5 {[%clk 0:01:41.4]} 16... dxc3 {[%clk 0:01:07.2]}
17. Bxc3 {[%clk 0:01:42.3]} 17... b4 {[%clk 0:01:05.5]} 18. axb4 {[%clk
0:01:38.2]} 18... Bxb4 {[%clk 0:01:00.9]} 19. Bxb4 {[%clk 0:01:25]} 19... Qxb4
{[%clk 0:00:58.6]} 20. d4 {[%clk 0:01:25.5]} 20... Nb6 {[%clk 0:00:48.5]} 21.
dxe5 {[%clk 0:01:13]} 21... O-O {[%clk 0:00:41.1]} 22. h6 {[%clk 0:01:06.3]}
22... Nc4 {[%clk 0:00:37.6]} 23. Qc3 {[%clk 0:01:00.5]} 23... Qxc3+ {[%clk
0:00:37.6]} 24. Nxc3 {[%clk 0:01:01.4]} 24... Ng6 {[%clk 0:00:33.6]} 25. e6
{[%clk 0:00:58.2]} 25... Nf4 {[%clk 0:00:26.6]} 26. e7 {[%clk 0:00:56.5]} 26...
Rxd1+ {[%clk 0:00:24.2]} 27. Rxd1 {[%clk 0:00:57.4]} 27... Re8 {[%clk
0:00:24.4]} 28. Rd8 {[%clk 0:00:57]} 28... Nd6 {[%clk 0:00:23.5]} 29. Bd7 {[%clk
0:00:54.7]} 29... Nd3+ {[%clk 0:00:21]} 30. Kd2 {[%clk 0:00:53.9]} 30... Nc5
{[%clk 0:00:17.3]} 31. Bxe8 {[%clk 0:00:53.9]} 31... Nc4+ {[%clk 0:00:17.4]} 32.
Ke2 {[%clk 0:00:53.3]} 1-0

[Event "*** Titled Tuesday Blitz"]
[Site "Chess.com"]
[Date "2021.04.06"]
[Round "1"]
[White "Zarikovs1999"]
[Black "mikolka1985"]
[Result "0-1"]
[WhiteElo "2360"]
[BlackElo "2665"]
[TimeControl "180+1"]
[EndTime "10:06:22 PDT"]
[Termination "mikolka1985 won by resignation"]

1. c4 {[%clk 0:02:59.7]} 1... Nf6 {[%clk 0:02:56.6]} 2. Nc3 {[%clk 0:02:53]}
2... e5 {[%clk 0:02:51.9]} 3. g3 {[%clk 0:02:52.7]} 3... Bb4 {[%clk 0:02:34.3]}
4. Bg2 {[%clk 0:02:51.8]} 4... O-O {[%clk 0:02:32.8]} 5. Nf3 {[%clk 0:02:46.1]}
5... Nc6 {[%clk 0:02:31.3]} 6. O-O {[%clk 0:02:44.5]} 6... d6 {[%clk 0:02:30.3]}
7. d3 {[%clk 0:02:43.8]} 7... h6 {[%clk 0:02:25.8]} 8. e4 {[%clk 0:02:43.4]}
8... Bg4 {[%clk 0:02:15.5]} 9. h3 {[%clk 0:02:40.8]} 9... Bxf3 {[%clk
0:02:14.6]} 10. Qxf3 {[%clk 0:02:40.9]} 10... Bc5 {[%clk 0:02:14.5]} 11. a3
{[%clk 0:02:38.9]} 11... a6 {[%clk 0:02:13.4]} 12. Kh2 {[%clk 0:02:35.5]} 12...
Nd4 {[%clk 0:02:08.6]} 13. Qd1 {[%clk 0:02:34.8]} 13... b5 {[%clk 0:02:07.2]}
14. Be3 {[%clk 0:02:27.7]} 14... c6 {[%clk 0:02:06.1]} 15. f4 {[%clk 0:02:25.7]}
15... Nd7 {[%clk 0:02:03.8]} 16. f5 {[%clk 0:02:21.5]} 16... Rb8 {[%clk
0:02:02.8]} 17. b4 {[%clk 0:02:15.1]} 17... Bb6 {[%clk 0:02:02]} 18. g4 {[%clk
0:02:05.1]} 18... bxc4 {[%clk 0:01:33.9]} 19. dxc4 {[%clk 0:02:04.3]} 19... a5
{[%clk 0:01:34]} 20. Rb1 {[%clk 0:02:00.8]} 20... axb4 {[%clk 0:01:30.6]} 21.
axb4 {[%clk 0:02:01.7]} 21... Ra8 {[%clk 0:01:29.4]} 22. f6 {[%clk 0:01:39.6]}
22... Nxf6 {[%clk 0:01:25.7]} 23. g5 {[%clk 0:01:39.2]} 23... Nh7 {[%clk
0:01:21.2]} 24. gxh6 {[%clk 0:01:36.5]} 24... g6 {[%clk 0:01:21.2]} 25. Qg4
{[%clk 0:01:15.6]} 25... Ra3 {[%clk 0:01:17.9]} 26. Nd1 {[%clk 0:01:09.1]} 26...
Qe7 {[%clk 0:01:13.8]} 27. h4 {[%clk 0:00:54.9]} 27... Kh8 {[%clk 0:01:13.1]}
28. h5 {[%clk 0:00:55.2]} 28... Rg8 {[%clk 0:01:10.5]} 29. Rb2 {[%clk
0:00:25.9]} 29... f5 {[%clk 0:01:02.7]} 30. Qh3 {[%clk 0:00:06.7]} 30... f4
{[%clk 0:01:01.8]} 31. Bxd4 {[%clk 0:00:05.3]} 31... Rxh3+ {[%clk 0:00:58.9]}
0-1

[Event "*** Titled Tuesday Blitz"]
[Site "Chess.com"]
[Date "2021.04.06"]
[Round "1"]
[White "bylavochka"]
[Black "Brave_spirit12"]
[Result "0-1"]
[WhiteElo "2231"]
[BlackElo "2550"]
[TimeControl "180+1"]
[EndTime "10:06:22 PDT"]
[Termination "Brave_spirit12 won on time"]

1. e4 {[%clk 0:03:00.9]} 1... e6 {[%clk 0:02:59.4]} 2. d4 {[%clk 0:03:01]} 2...
d5 {[%clk 0:02:56.4]} 3. Bd3 {[%clk 0:03:01.4]} 3... c5 {[%clk 0:02:53.7]} 4.
exd5 {[%clk 0:02:58.6]} 4... exd5 {[%clk 0:02:52]} 5. Nf3 {[%clk 0:02:58.3]}
5... Nc6 {[%clk 0:02:48.4]} 6. dxc5 {[%clk 0:02:38]} 6... Bxc5 {[%clk
0:02:42.8]} 7. h3 {[%clk 0:02:38.2]} 7... Nge7 {[%clk 0:02:32.9]} 8. O-O {[%clk
0:02:38]} 8... O-O {[%clk 0:02:32.6]} 9. Bf4 {[%clk 0:02:32.6]} 9... Bf5 {[%clk
0:02:27.3]} 10. Nc3 {[%clk 0:02:13.9]} 10... Qd7 {[%clk 0:02:21.3]} 11. Ne2
{[%clk 0:02:09]} 11... Rad8 {[%clk 0:01:28.3]} 12. Ne5 {[%clk 0:02:04.9]} 12...
Nxe5 {[%clk 0:01:25.5]} 13. Bxe5 {[%clk 0:02:05.8]} 13... Qe6 {[%clk 0:01:24.5]}
14. Bf4 {[%clk 0:01:47.7]} 14... Rfe8 {[%clk 0:01:22.8]} 15. Ng3 {[%clk
0:01:42.4]} 15... Bxd3 {[%clk 0:01:20.1]} 16. Qxd3 {[%clk 0:01:43.3]} 16... Ng6
{[%clk 0:01:21]} 17. Bd2 {[%clk 0:01:22.6]} 17... Ne5 {[%clk 0:01:16.8]} 18. Qb3
{[%clk 0:01:15]} 18... Nc4 {[%clk 0:01:08.2]} 19. Bb4 {[%clk 0:00:56.7]} 19...
Bb6 {[%clk 0:00:56.2]} 20. Rae1 {[%clk 0:00:50.3]} 20... Qg6 {[%clk 0:00:50.1]}
21. Qd3 {[%clk 0:00:06.5]} 21... Qxd3 {[%clk 0:00:44.9]} 22. cxd3 {[%clk
0:00:07.4]} 22... Nxb2 {[%clk 0:00:45.8]} 23. Rb1 {[%clk 0:00:02]} 23... Nc4
{[%clk 0:00:45.7]} 24. dxc4 {[%clk 0:00:02.2]} 24... dxc4 {[%clk 0:00:46.2]} 25.
Bc3 {[%clk 0:00:02.4]} 25... Rd3 {[%clk 0:00:45.7]} 0-1

[Event "*** Titled Tuesday Blitz"]
[Site "Chess.com"]
[Date "2021.04.06"]
[Round "1"]
[White "AlphaHero0"]
[Black "MalyDominator"]
[Result "1-0"]
[WhiteElo "2082"]
[BlackElo "2486"]
[TimeControl "180+1"]
[EndTime "10:06:22 PDT"]
[Termination "AlphaHero0 won by checkmate"]

1. e4 {[%clk 0:03:00.9]} 1... c5 {[%clk 0:02:58.3]} 2. Nf3 {[%clk 0:03:01.1]}
2... d6 {[%clk 0:02:58.3]} 3. c3 {[%clk 0:03:00.3]} 3... Nf6 {[%clk 0:02:57.8]}
4. h3 {[%clk 0:03:00.7]} 4... g6 {[%clk 0:02:54.7]} 5. Bd3 {[%clk 0:03:00.9]}
5... Bg7 {[%clk 0:02:54.7]} 6. O-O {[%clk 0:03:01.1]} 6... O-O {[%clk
0:02:54.7]} 7. Bc2 {[%clk 0:03:01.6]} 7... e5 {[%clk 0:02:53.9]} 8. d4 {[%clk
0:03:00.3]} 8... Nc6 {[%clk 0:02:52.7]} 9. dxc5 {[%clk 0:02:52.8]} 9... dxc5
{[%clk 0:02:52.7]} 10. Be3 {[%clk 0:02:52.9]} 10... Qe7 {[%clk 0:02:51.2]} 11.
Qe2 {[%clk 0:02:51.4]} 11... b6 {[%clk 0:02:51]} 12. a4 {[%clk 0:02:49.4]} 12...
Bb7 {[%clk 0:02:50.8]} 13. Rd1 {[%clk 0:02:46.5]} 13... Rfd8 {[%clk 0:02:49.3]}
14. Na3 {[%clk 0:02:45.9]} 14... Na5 {[%clk 0:02:48.9]} 15. Bg5 {[%clk
0:02:36.3]} 15... h6 {[%clk 0:02:47.9]} 16. Bh4 {[%clk 0:02:36.6]} 16... g5
{[%clk 0:02:44.1]} 17. Bg3 {[%clk 0:02:10.4]} 17... Nh5 {[%clk 0:02:42.9]} 18.
Nh2 {[%clk 0:02:08.7]} 18... Nf4 {[%clk 0:02:41.5]} 19. Qe1 {[%clk 0:01:35.4]}
19... Ba6 {[%clk 0:02:36.7]} 20. Ng4 {[%clk 0:01:30]} 20... h5 {[%clk
0:02:32.9]} 21. Ne3 {[%clk 0:01:29.9]} 21... Ne2+ {[%clk 0:02:29.4]} 22. Kh2
{[%clk 0:01:30.1]} 22... h4 {[%clk 0:02:27.6]} 23. Nf5 {[%clk 0:01:27.8]} 23...
hxg3+ {[%clk 0:02:20.5]} 24. fxg3 {[%clk 0:01:26.1]} 24... Qf6 {[%clk
0:02:19.8]} 25. b4 {[%clk 0:01:22.6]} 25... cxb4 {[%clk 0:02:12.5]} 26. cxb4
{[%clk 0:01:23.5]} 26... Nc4 {[%clk 0:02:12.7]} 27. b5 {[%clk 0:01:22.6]} 27...
Rxd1 {[%clk 0:01:56.3]} 28. Bxd1 {[%clk 0:01:23.5]} 28... Nxa3 {[%clk
0:01:34.1]} 29. Qxe2 {[%clk 0:01:23.3]} 29... Bc8 {[%clk 0:01:31]} 30. Rxa3
{[%clk 0:01:20.1]} 30... Bxf5 {[%clk 0:01:30.9]} 31. exf5 {[%clk 0:01:20]} 31...
Qxf5 {[%clk 0:01:30]} 32. Rf3 {[%clk 0:01:14]} 32... Qd7 {[%clk 0:01:22.2]} 33.
Bb3 {[%clk 0:01:11.8]} 33... Rf8 {[%clk 0:01:19]} 34. Qc4 {[%clk 0:01:10]} 34...
Qd4 {[%clk 0:01:16]} 35. Qc7 {[%clk 0:01:04.6]} 35... Qb4 {[%clk 0:00:25.3]} 36.
Bxf7+ {[%clk 0:00:59.5]} 36... Kh7 {[%clk 0:00:23]} 37. Qc6 {[%clk 0:00:55.8]}
37... e4 {[%clk 0:00:22]} 38. Qg6+ {[%clk 0:00:55.4]} 38... Kh8 {[%clk 0:00:22]}
39. Qh5+ {[%clk 0:00:55.5]} 39... Bh6 {[%clk 0:00:22.5]} 40. Qxh6# {[%clk
0:00:55]} 1-0

[Event "*** Titled Tuesday Blitz"]
[Site "Chess.com"]
[Date "2021.04.06"]
[Round "1"]
[White "biostatistician"]
[Black "Eloist"]
[Result "0-1"]
[WhiteElo "2631"]
[BlackElo "2359"]
[TimeControl "180+1"]
[EndTime "10:06:24 PDT"]
[Termination "Eloist won by resignation"]

1. d4 {[%clk 0:02:59.1]} 1... e6 {[%clk 0:02:59.9]} 2. Nf3 {[%clk 0:03:00]} 2...
Nf6 {[%clk 0:02:59.7]} 3. c4 {[%clk 0:03:00.5]} 3... b6 {[%clk 0:02:59.5]} 4.
Nc3 {[%clk 0:03:00.9]} 4... Bb4 {[%clk 0:02:57.9]} 5. Qc2 {[%clk 0:03:01.1]}
5... Bb7 {[%clk 0:02:56.9]} 6. a3 {[%clk 0:03:02]} 6... Bxc3+ {[%clk 0:02:55.5]}
7. Qxc3 {[%clk 0:03:02.9]} 7... Ne4 {[%clk 0:02:55.2]} 8. Qc2 {[%clk 0:03:03.1]}
8... f5 {[%clk 0:02:55.6]} 9. g3 {[%clk 0:03:03.7]} 9... O-O {[%clk 0:02:54.3]}
10. Bg2 {[%clk 0:03:04]} 10... c5 {[%clk 0:02:47.3]} 11. O-O {[%clk 0:03:03.5]}
11... cxd4 {[%clk 0:02:46.4]} 12. Nxd4 {[%clk 0:03:04.4]} 12... Nc6 {[%clk
0:02:38]} 13. Be3 {[%clk 0:02:39.9]} 13... Rc8 {[%clk 0:02:30]} 14. Rac1 {[%clk
0:02:37.8]} 14... Ne5 {[%clk 0:02:24.4]} 15. b3 {[%clk 0:02:33.7]} 15... Ng4
{[%clk 0:02:18.7]} 16. Qd3 {[%clk 0:02:16.7]} 16... Nxe3 {[%clk 0:01:53.8]} 17.
Qxe3 {[%clk 0:02:17.6]} 17... Qe7 {[%clk 0:01:52]} 18. b4 {[%clk 0:02:16.2]}
18... a5 {[%clk 0:01:48.2]} 19. Nb5 {[%clk 0:02:07.2]} 19... axb4 {[%clk
0:01:46]} 20. Qxb6 {[%clk 0:02:07.2]} 20... Bc6 {[%clk 0:01:40.8]} 21. axb4
{[%clk 0:02:04.8]} 21... Qxb4 {[%clk 0:01:30.2]} 22. Bxe4 {[%clk 0:01:39.8]}
22... Bxe4 {[%clk 0:01:27.7]} 23. Qd6 {[%clk 0:01:39.5]} 23... Rxc4 {[%clk
0:01:17.2]} 24. Rxc4 {[%clk 0:01:38.8]} 24... Qxc4 {[%clk 0:01:16.9]} 25. Qxd7
{[%clk 0:01:38.8]} 25... Bc6 {[%clk 0:00:54.1]} 26. Qd6 {[%clk 0:01:15.6]} 26...
Bxb5 {[%clk 0:00:49.1]} 27. Re1 {[%clk 0:01:15.1]} 27... Qd5 {[%clk 0:00:45.8]}
28. Qf4 {[%clk 0:01:14.5]} 28... Bc6 {[%clk 0:00:44.9]} 29. f3 {[%clk
0:01:14.4]} 29... e5 {[%clk 0:00:44.3]} 30. Qe3 {[%clk 0:01:14.8]} 30... f4
{[%clk 0:00:41.9]} 31. Qf2 {[%clk 0:01:13.4]} 31... fxg3 {[%clk 0:00:39.4]} 32.
hxg3 {[%clk 0:01:13.1]} 32... e4 {[%clk 0:00:39.4]} 33. f4 {[%clk 0:01:00.1]}
33... e3 {[%clk 0:00:34.6]} 34. Qh2 {[%clk 0:01:00.6]} 34... Rf6 {[%clk
0:00:31.1]} 0-1